Cogmind - Beta 15 @@@ ROGUE MODE // 2025.08.07 @ 17:52:04 Player: BattleBruvva Result: Destroyed by ML-KOW(R) with Subdweller Laser Performance ------------- Evolutions (0) 0 Regions Visited (2) 400 Robots Destroyed (28) 140 Value Destroyed (631) 631 Prototype IDs (5) 100 Alien Tech Used (0) 0 Bonus (0) 0 TOTAL SCORE: 1271 Bonus ------- None Cogmind --------- Core Integrity 0/250 Matter 147/300 Energy 42/100 System Corruption 5% Temperature Cool (6) Movement Rolling (150) Ox4 Location -10/Subcaves Parts ------- > --- POWER (1) -------- (None) > --- PROPULSION (2) --- Armored Wheel > --- UTILITY (2) ------ High-capacity Storage Unit Makeshift Light Armor Plating > --- WEAPON (2) ------- Improved Medium Laser Beam Cannon > --- INVENTORY (20) --- Ion Engine Armored Wheel Armored Wheel Heat Sink Medium Battery (150) Improved Terrain Scanner Targeting Computer Particle Gun Improved Medium Laser Improved Medium Laser Subdweller Machine Gun EMP Blaster Grenade Launcher Grenade Launcher Grenade Launcher Plasma Cutter Peak State ------------ > --- POWER ------------ (None) > --- PROPULSION ------- Armored Wheel Armored Wheel > --- UTILITY ---------- High-capacity Storage Unit Makeshift Light Armor Plating > --- WEAPON ----------- Improved Medium Laser Improved Medium Laser > --- INVENTORY -------- Ion Engine Armored Wheel Armored Wheel Heat Sink Medium Battery Improved Terrain Scanner Targeting Computer Particle Gun Improved Medium Laser Beam Cannon EMP Blaster Grenade Launcher Grenade Launcher Grenade Launcher Plasma Cutter [Rating: 17] Favorites ----------- Power Improved Ion Engine Engine Improved Ion Engine Propulsion Armored Wheel Leg Aluminum Leg Wheel Armored Wheel Utility High-capacity Storage Unit Device Heat Sink Storage High-capacity Storage Unit Protection Makeshift Light Armor Plating Weapon Improved Medium Laser Energy Gun Improved Medium Laser Energy Cannon Beam Cannon Ballistic Gun Assault Rifle Launcher Grenade Launcher Build | -11 -10 -10 ------- Run | Yrd Mat Sub Slots Evolved . | . . . Power . | . . . Propulsion . | . . . Utility . | . . . Weapon . | . . . Parts Attached 25 | 8 12 5 Power 3 | 1 2 . Engine 3 | 1 2 . Core . | . . . Reactor . | . . . Propulsion 7 | 3 4 . Treads . | . . . Leg 1 | 1 . . Wheel 6 | 2 4 . Hover . | . . . Flight . | . . . Utility 6 | 2 3 1 Device 2 | 1 1 . Storage 3 | 1 2 . Processor . | . . . Hackware . | . . . Protection 1 | . . 1 Artifact . | . . . Weapon 9 | 2 3 4 Energy Gun 4 | . 2 2 Energy Cannon 1 | . . 1 Ballistic Gun 2 | 2 . . Ballistic Cannon . | . . . Launcher 2 | . 1 1 Special Weapon . | . . . Impact Weapon . | . . . Slashing Weapon . | . . . Piercing Weapon . | . . . Special Melee Weapon . | . . . Unidentified Prototypes 1 | . 1 . Parts Lost 5 | . 1 4 Power 2 | . 1 1 Propulsion 1 | . . 1 Utility 1 | . . 1 Weapon 1 | . . 1 Highest Loss Streak 2 | . 1 2 To Critical Strikes 1 | . 1 . Average Backups 12 | 3 12 15 Power . | . . 1 Propulsion 1 | 1 1 2 Utility 3 | . 3 4 Weapon 5 | . 5 7 Tool/Special . | . . . Unused Backups 14 | 1 5 8 Power 3 | . 2 1 Propulsion 3 | 1 2 . Utility 3 | . . 3 Weapon 4 | . 1 3 Tool/Special 1 | . . 1 Average Slot Usage (%) 98 | . 99 95 Engine 13 | . 13 11 Wheel 27 | . 28 27 Device 13 | . 14 10 Storage 14 | . 14 14 Energy Gun 22 | . 23 20 Launcher 4 | . 3 5 Peak Build Rating 17 | 7 16 17 Average Rating 13 | 5 14 15 On Entrance 7 | . 7 14 Naked Turns . | . . . Heaviest Build 54 | 15 54 54 Greatest Support 32 | 32 32 24 Greatest Overweight (x) 2 | 1 2 2 Average Overweight (x) 1 | . 1 2 Largest Inventory Capacity 20 | 8 20 20 Average Capacity 17 | 7 17 20 Most Carried 16 | 6 16 16 Average Carried 12 | 3 12 15 Final Capacity 20 | 8 20 20 Final Carried 16 | 5 16 16 Class Distribution -------------------- 100% | Mutant Dominant Class ---------------- Mutant | -10/Materials Mutant | -10/Subcaves Resources | -11 -10 -10 ----------- Run | Yrd Mat Sub Matter Collected 582 | 304 263 15 Remotely . | . . . Salvage Created 916 | 114 743 59 Parts 50 | 6 38 6 Haulers Intercepted 2 | . 2 . Recyclers Shooed . | . . . Parts Field Recycled . | . . . Retrieved Matter . | . . . Parts Self-Destructed . | . . . Prevented . | . . . Kills | -11 -10 -10 ------- Run | Yrd Mat Sub Combat Hostiles Destroyed 19 | . 17 2 Guns 15 | . 15 . Cannons 1 | . . 1 AOE 3 | . 2 1 Classes Destroyed 11 | 2 7 2 Worker 1 | . 1 . Builder 1 | . 1 . Tunneler 1 | 1 . . Hauler 2 | . 2 . Recycler 1 | 1 . . Operator 1 | . 1 . Watcher 2 | . 2 . Swarmer 6 | . 6 . Grunt 11 | . 11 . Artisan 1 | . . 1 Subdweller 2 | . . 2 Best Kill Streak 6 | 2 6 1 Combat Bots Only 3 | . 3 1 Max Kills in Single Turn 2 | 1 2 1 Gunslinging . | . . . Exploded 2 | . 2 1 Melee . | . . . Uniques/NPCs Destroyed . | . . . Combat | -11 -10 -10 -------- Run | Yrd Mat Sub Hostile Shots Fired 109 | . 81 28 Missed 24 | . 18 6 Hits 85 | . 63 22 Projectile 85 | . 63 22 Critical Strikes 4 | . 4 . Damage Taken 1131 | . 618 513 Core 267 | . 130 137 Absorbed by Shields . | . . . Core Remaining (%) 100 | 100 . . Volleys Fired 79 | 4 53 22 Largest 2 | 2 2 2 Hottest 116 | 40 112 116 Shots Fired 153 | 8 103 42 Gun 136 | 8 98 30 Cannon 8 | . . 8 Launcher 9 | . 5 4 Special . | . . . Kinetic 8 | 8 . . Thermal 136 | . 98 38 Explosive 9 | . 5 4 Electromagnetic . | . . . Robot Hit Streak 14 | 3 9 14 Robot Miss Streak 5 | 1 5 2 Penetration Max . | . . . Secondary Targets 1 | . 1 . Max Gunslinging Chain 1 | . 1 . Shots Hit Robots 94 | 6 56 32 Core Hits 34 | 3 26 5 Critical Kills . | . . . Critical Parts Destroyed . | . . . Critical Strikes 4 | . 3 1 Burn 4 | . 3 1 Melee Attacks . | . . . Impact . | . . . Slashing . | . . . Piercing . | . . . Sneak Attacks . | . . . Combat Hostiles . | . . . Follow-up Attacks . | . . . Damage Inflicted 1448 | 78 1078 292 Guns 1103 | 78 926 99 Cannons 69 | . . 69 Explosions 258 | . 134 124 Melee . | . . . Ramming 18 | . 18 . Kinetic 78 | 78 . . Thermal 1094 | . 926 168 Explosive 258 | . 134 124 Electromagnetic . | . . . Impact . | . . . Slashing . | . . . Piercing . | . . . Highest Corruption 5 | . 5 5 Average Corruption 4 | . 4 5 Corruption Purged . | . . . Corruption Blocked . | . . . Effects 31 | . 19 12 Message Errors 6 | . 4 2 Matter Fused 10 | . 5 5 Heat Flow Errors 4 | . 4 . Energy Discharges 3 | . 2 1 Data Loss (minor) 4 | . 2 2 Misfires 1 | . 1 . Weapon Failures 3 | . 1 2 Overload Shots . | . . . Overflow Damage 6 | . 6 . Projectiles . | . . . Explosions 6 | . 6 . Melee . | . . . Knockbacks . | . . . Impact . | . . . Kinetic . | . . . Secondary . | . . . Self-Inflicted Damage 34 | . 29 5 Shots 2 | . 1 1 Rammed 1 | . 1 . Targets Rammed 1 | . 1 . Kicked . | . . . Crushed . | . . . Highest Temperature 378 | . 378 12 Average Temperature 123 | . 131 5 Received Heat Transfer 186 | . 144 42 Effects 4 | . 4 . Shutdowns 1 | . 1 . Interference 1 | . 1 . Matter Decay 2 | . 2 . Siege Activations . | . . . Martial Activations . | . . . Shielding Activations . | . . . Robots Disrupted . | . . . Combat Hostiles . | . . . Robots Corrupted . | . . . Combat Hostiles . | . . . Parts Fried . | . . . Impact Corruptions . | . . . Robots Melted . | . . . Combat Hostiles . | . . . Parts Melted 7 | . 5 2 Heat Transferred 2701 | . 2257 444 Parts Sabotaged . | . . . Parts Stolen . | . . . Parts Stripped . | . . . Power Chain Reactions . | . . . Alert | -11 -10 -10 ------- Run | Yrd Mat Sub Maximum Alert Level 1 | . 1 . Low Security (%) 73 | 100 71 . Level 1 26 | . 28 . Level 2 . | . . . Level 3 . | . . . Level 4 . | . . . Level 5 . | . . . High Security . | . . . Max Security . | . . . Peak Influence 235 | 10 235 . Initial . | . . . Average 106 | . 116 . Influence Increases 633 | 10 623 . Destroy 0b10 Robot/C 340 | . 340 . Destroy 0b10 Robot/NC 45 | 10 35 . Destroy Leader 78 | . 78 . Successful Hack 17 | . 17 . Disable Machine 30 | . 30 . Destroy Structure 33 | . 33 . Lose Combat Pursuer 90 | . 90 . Influence Decreases 633 | 10 410 213 Entered New Map 103 | . . 103 Time Decay 510 | 10 400 100 Lost Part 20 | . 10 10 Squads Dispatched 4 | . 4 . Investigation 3 | . 3 . Extermination . | . . . Reinforcement 1 | . 1 . Assault . | . . . Garrison . | . . . Intercept . | . . . Searches Triggered . | . . . Construction Impeded . | . . . Haulers Reinforced . | . . . Active Scanning Responses . | . . . Cargo Convoy Interrupts . | . . . Stealth | -11 -10 -10 --------- Run | Yrd Mat Sub Distress Signals 2 | . 2 . Communications Jammed . | . . . Distress Signals . | . . . Times Spotted 37 | . 34 3 Peak Tracking Total 6 | . 6 2 Tactical Retreats 2 | . 2 . Traps | -11 -10 -10 ------- Run | Yrd Mat Sub Traps Triggered 6 | . 5 1 Indirectly . | . . . Trap Hack Attempts . | . . . Triggered . | . . . Disarmed . | . . . Reprogrammed . | . . . Reused . | . . . Traps Extracted . | . . . Installed . | . . . Triggered . | . . . Machines | -11 -10 -10 ---------- Run | Yrd Mat Sub Machines Disabled 2 | . 2 . Max in Single Turn 1 | . 1 . Machines Repaired . | . . . Machines Dismantled . | . . . Machines Sabotaged . | . . . Overloaded Fab Kills . | . . . Hacking | -11 -10 -10 --------- Run | Yrd Mat Sub Machines Accessed 6 | . 6 . Terminals 6 | . 6 . Fabricators . | . . . Repair Stations . | . . . Recycling Units . | . . . Scanalyzers . | . . . Garrison Access . | . . . Total Hacks 15 | . 15 . Successful 10 | . 10 . Failed 5 | . 5 . Catastrophic 2 | . 2 . Database Lockouts . | . . . Manual 9 | . 9 . Terminals 15 | . 15 . Fabricators . | . . . Repair Stations . | . . . Recycling Units . | . . . Scanalyzers . | . . . Garrison Access . | . . . Terminal Hacks 6 | . 6 . Record 1 | . 1 . Prototype ID Bank 3 | . 3 . Alert Level 1 | . 1 . Zone Layout 1 | . 1 . Fabricator Hacks . | . . . Repair Station Hacks . | . . . Recycling Unit Hacks . | . . . Scanalyzer . | . . . Garrison Access Hacks . | . . . Unauthorized Hacks 4 | . 4 . Terminals 4 | . 4 . Botnet 4 | . 4 . Fabricators . | . . . Repair Stations . | . . . Recycling Units . | . . . Scanalyzers . | . . . Garrison Access . | . . . Data Cores Recovered 1 | . 1 . Used . | . . . Hacking Detections 3 | . 3 . Full Trace Events 1 | . 1 . Feedback Events . | . . . Feedback Blocked . | . . . Robot Schematics Acquired . | . . . Robots Built . | . . . Authchips . | . . . Time . | . . . Total Robot Build Rating . | . . . Part Schematics Acquired . | . . . Parts Built . | . . . Authchips . | . . . Time . | . . . Total Part Build Rating . | . . . Parts Repaired . | . . . Time . | . . . Parts Recycled . | . . . Recycled Matter . | . . . Retrieved Matter . | . . . Retrieved Components . | . . . Parts Scanalyzed . | . . . Part Schematics Acquired . | . . . Parts Damaged . | . . . Bothacking | -11 -10 -10 ------------ Run | Yrd Mat Sub Used RIF Installer . | . . . Robots Hacked . | . . . Non-combat . | . . . Combat . | . . . Robot Hacks Applied . | . . . Relay Couplers Released . | . . . Fabnet Peak Effective % . | . . . Robots Rewired . | . . . Allies Hacked . | . . . Hacks Repelled . | . . . Allies | -11 -10 -10 -------- Run | Yrd Mat Sub Total Allies . | . . . Largest Group . | . . . Highest-Rated Group . | . . . Highest-Rated Ally . | . . . Total Orders . | . . . Ally Attacks . | . . . Total Damage . | . . . Kills . | . . . Allies Corrupted . | . . . Allies Melted . | . . . Intel | -11 -10 -10 ------- Run | Yrd Mat Sub Active Infowar (turns) 810 | 48 586 176 Seismic 810 | 48 586 176 Robot Analysis Total . | . . . Derelict Logs Recovered 1 | . . 1 Drone Launches . | . . . Drone Recoveries . | . . . Exploration | -11 -10 -10 ------------- Run | Yrd Mat Sub Turns Passed 2044 | 138 1525 381 Spaces Moved 1478 | 89 1146 243 Core 5 | 5 . . Treads . | . . . Legs 22 | 22 . . Wheels 1451 | 62 1146 243 Hover . | . . . Flight . | . . . Fastest Speed 50 | 50 90 120 Average Speed 114 | 116 113 120 Slowest Speed 190 | 190 120 120 Overloaded Moves . | . . . Propulsion Burnouts . | . . . Robots Hopped . | . . . Potential Cave-ins . | . . . Cave-ins Triggered . | . . . Exploration Rate (%) 40 | 4 99 17 Regions Visited 2 Branch Regions 1 Pre-discovered Areas . | . . . Known Exits Taken . | . . . Unknown Exits Taken 2 | 1 1 . Scrap Searched . | . . . Spaces Dug 6 | . 6 . Terrain Destroyed 54 | . 37 17 Melee . | . . . Projectile . | . . . AOE 54 | . 37 17 Terrain Rammed . | . . . Walls Destroyed . | . . . Machines Disabled . | . . . Actions | -11 -10 -10 --------- Run | Yrd Mat Sub Total 1677 | 114 1277 286 Wait 48 | . 35 13 Move 1476 | 88 1145 243 Hop . | . . . Pick Up 29 | 9 18 2 Fast Attach 7 | 7 . . Attach 5 | 1 2 2 Detach 2 | 1 1 . Swap 15 | . 11 4 Drop 15 | 4 11 . Fire 79 | 4 53 22 Melee . | . . . Ram 1 | . 1 . Kick . | . . . Crush . | . . . Escape Stasis . | . . . Rewire . | . . . Trap . | . . . Miscellaneous . | . . . Route ------- -11/Scrapyard -10/Materials (discovered 6 exits: [*Mat x3] / [*Min x2] / [*Sub]) -10/Subcaves History --------- Turn | Location | Event 28 | -11/Scrapyard | Discovered new exit (range 16) 139 | -11/Scrapyard | Entered Materials 260 | -10/Materials | Discovered new exit (range 7) 286 | -10/Materials | Discovered new exit (range 16) 316 | -10/Materials | Build established: Mutant 559 | -10/Materials | Discovered new exit (range 7) 891 | -10/Materials | Discovered new exit (range 4) 1001 | -10/Materials | Discovered new exit (range 16) 1284 | -10/Materials | Core integrity fell below 50% 1654 | -10/Materials | Discovered new exit (range 9) 1664 | -10/Materials | Entered Subcaves 1893 | -10/Subcaves | Shifting Twisted Machinery released Shrapnel Trap 1897 | -10/Subcaves | Shifting Twisted Machinery released Mak. Light Armor Plating 1982 | -10/Subcaves | Core integrity fell below 20% 2045 | -10/Subcaves | Destroyed by ML-KOW(R) with Subdweller Laser Last Messages --------------- 01986_ 23-PR0(u) destroyed. 01987_ Subatomizers dissect the Multitool. 01989_ System corrupted: Grenade Launcher failed to launch. 01992_ 0V-2FL(R) destroyed. 01999_ Subatomizers dissect the Multitool. 01999_ Acquired 15 matter. 02001_ Acquired Sub. Machine Gun. 02008_ System corrupted: Component data lost. 02009_ Subatomizers dissect the Multitool, destroying it. 02022_ J3-PJV(R): "SUBMAD!" 02033_ System corrupted: Matter fused (-10). 02035_ J3-PJV(R) suffers critical hit (Burn). 02036_ Subatomizers dissect the Sub. Power Source, destroying it. 02037_ Arm. Wheel destroyed. 02038_ Sub. Monowheel melted. 02038_ Disposable Heat Sink melted. 02038_ J3-PJV(R) destroyed. Map ----- +----------------------------------------------------+ | | | | | | | ?????????????????????????????????????????????????? | | ?????????????????????????????????????????????????? | | ?????????????????????????????????????????????????? | | ?????????????????????????????????????????????????? | | ?????????????????????????????????????????????????? | | ?????????????????????????????????????????????????? | | ?????????????????????????????????????????????????? | | ?????????????????????????????????????????????????? | | ?????????????????????????????????????????????????? | | ?????????????????????????????????????????????????? | | ?????????????????????????????????????????????????? | | ?????????????????????????????????????????????????? | | ?????????????????????????????????????????????????? | | ?????????????????????????????????????????????????? | | ??????????????????????????????????????###????????? | | ?????????????????????????############## ##???????? | | ??????????????????"??????# ## # # #??###??? | | ??????????????????""?????# ## #??#"##?? | | ??????????????????""""????# # ###"""#?? | | ????????????????""""" ##### # " ##? | | ????????#??? """"" "" ####### "& #? | | ???????# ????? " #?????# ### #? | | ? #???? ????? "R @ #?????##### #? | | ? #??? #???? "" ##?????#### ##? | | ?? ?? #??# # | ##???#### # #?? | | ?? ?? ????? # !%] #????# ##? | | ??? ?? ????????? ## ##????## # # ## | | ??? ## ????????? # # ## ???????#?## # | | ???# ????????? ######? ????????# | | ???# ????????? ##?????? #???????## # | | #??# ????????? ??????? ####??????# # | | # ## ???????## """???????##### ?????## # | | #??###### """????????????? ?????# # | | ?# #?## "#???????????????# ????## # | | ???# ### #?????????????????# #### ## | | ????# ^ ## #######?????###???# ##? | | ????#### ## #???### #??## #?? | | ######## ##### #?# ##?? | | ## "" #?## ### #??? | | ## "" ###??####???# ##??? | | ### ##???????????# #???? | | ### ## ##??#####?###?# ###?? | | ## ######?### ### ### ### | | ##### ####??# | | ## #### #??### ##?# | | ######??# #????# #?# ### | | ###???????# ##???## ### #?## | +----------------------------------------------------+ Best States ------------- Heat Dissipation 35 Energy Generation 12 Energy Capacity 265 Matter Stores 300 Matter Capacity 300 Sight Range 16 Terrain Scan Density 10 Armor Coverage 100 Evasion (%) 45 Item Schematics ----------------- None Robot Schematics ------------------ None Fabricated ------------ Nothing Repaired ---------- Nothing Alien Tech Used ----------------- None Achievements -------------- None Challenges ------------ None Game ------ Seed AblativeLatentDriver Manual? 0 Play Time 00:16:48 Cumulative 51.3 hours Start 2025.08.07 @ 17:35:56 End 2025.08.07 @ 17:52:04 Sessions 1 Manual Loads 0 Difficulty Rogue Special Mode None Game No. 25 Rogue 11 Adventurer 14 Explorer 0 Win Type - Total 4 Types 1/0/2/0/0/0/0/1/0/0 Lore% 46 Gallery% 40 Achievement% 41 Wizard Run 0 Options --------- Layout 2 ASCII 0 Keyboard 1 Movement Arrows Keybinds 0 Fullscreen 2 Font 24/Smallcaps Map View 50x44 Zoom Use 0% Tactical HUD 1 Map Filters NONE Filters NONE Steam 1 RUN: 621efea9-3cce-4fa4-864c-48c72bb0bf92